[Event "1000GM Spring IM-C 2024"]
[Site "New York"]
[Date "2024.03.30"]
[Round "6.3"]
[White "Yang, Qindong"]
[Black "Andrews, Todd"]
[Result "0-1"]
[ECO "A43"]
[WhiteElo "2234"]
[BlackElo "2160"]
[Annotator "RC"]
[PlyCount "130"]
[EventDate "2024.03.26"]
[EventType "tourn"]
[EventCountry "USA"]
[SourceTitle "playchess.com"]
[Source "ChessBase"]
[SourceQuality "1"]
[TimeControl "5400+30"]

1. d4 {[%emt 0:00:12]} c5 {[%emt 0:03:33]} 2. d5 {[%emt 0:00:13]} Nf6 {[%emt 0:00:25]} 3. Nf3 {[%emt 0:00:28]} b5 {[%emt 0:01:29]} 4. Bg5 {[%emt 0:01:18]} Qb6 {[%emt 0:00:40]} 5. e3 {[%emt 0:01:10]} Bb7 {[%emt 0:12:24]} 6. Nc3 {[%emt 0:24:37]} b4 {[%emt 0:05:01]} 7. Bxf6 {[%emt 0:01:28]} exf6 {[%emt 0:11:11]} 8. Ne2 {[%emt 0:01:30]} f5 {[%emt 0:00:54]} 9. Nf4 {[%emt 0:16:03]} Qf6 {[%emt 0:13:37]} 10. Rb1 {[%emt 0:48:31]} Bd6 {[%emt 0:03:17]} 11. Bc4 {[%emt 0:00:00]} O-O {[%emt 0:02:13]} 12. O-O {[%emt 0:00:00]} Re8 {[%emt 0:06:16]} 13. Qd3 {[%emt 0:00:00]} a5 {[%emt 0:10:33]} 14. a4 {[%emt 0:00:00]} Re4 {[%emt 0:04:06]} 15. Nh5 {[%emt 0:00:00]} Qg6 {[%emt 0:02:34]} 16. Ng3 {[%emt 0:00:00]} Bxg3 {[%emt 0:06:56]} 17. fxg3 {[%emt 0:00:00]} Qh6 {[%emt 0:02:11]} 18. Rbe1 {[%emt 0:00:00]} d6 {[%emt 0:02:13]} 19. Nd2 {[%emt 0:00:00]} Re7 {[%emt 0:00:35]} 20. Bb5 {[%emt 0:00:00]} Na6 {[%emt 0:05:24]} 21. Rxf5 {[%emt 0:00:00]} Nc7 {[%emt 0:00:14]} 22. e4 {[%emt 0:00:00]} Nxb5 {[%emt 0:01:43]} 23. axb5 {[%emt 0:00:00]} a4 {[%emt 0:00:15]} 24. Nc4 {[%emt 0:00:00]} Qg6 {[%emt 0:00:13]} 25. Nb6 {[%emt 0:00:16]} Qxf5 {[%emt 0:02:31]} 26. exf5 {[%emt 0:02:04]} Rxe1+ {[%emt 0:00:07]} 27. Kf2 {[%emt 0:00:01]} a3 {[%emt 0:00:23]} 28. bxa3 {[%emt 0:02:59]} bxa3 {[%emt 0:00:27]} 29. Nxa8 {[%emt 0:02:01]} a2 {[%emt 0:00:17]} 30. Kxe1 {[%emt 0:01:38]} a1=Q+ {[%emt 0:00:24]} 31. Kf2 {[%emt 0:00:16]} Bxa8 {[%emt 0:01:08]} 32. Qe3 {[%emt 0:01:07]} Qd4 {[%emt 0:00:21]} 33. c4 {[%emt 0:00:06]} Qe5 {[%emt 0:01:05]} 34. g4 {[%emt 0:00:54]} Kf8 {[%emt 0:00:52]} 35. Qa3 {[%emt 0:00:26]} Qf4+ {[%emt 0:00:43]} 36. Ke1 {[%emt 0:00:11]} Qe4+ {[%emt 0:00:07]} 37. Kf2 {[%emt 0:00:09]} Qd4+ {[%emt 0:01:15]} 38. Kg3 {[%emt 0:00:23]} Bb7 {[%emt 0:01:53]} 39. Qa7 {[%emt 0:01:59]} Qe3+ {[%emt 0:00:00]} 40. Kh4 {[%emt 0:00:00]} Qe7+ {[%emt 0:00:19]} 41. Kh3 {[%emt 0:00:00]} Qd7 {[%emt 0:00:34]} 42. Kg3 {[%emt 0:00:29]} Bc8 {[%emt 0:00:24]} 43. Qb8 {[%emt 0:00:36]} g6 {[%emt 0:00:09]} 44. b6 {[%emt 0:00:35]} Kg7 {[%emt 0:00:14]} 45. Qa8 {[%emt 0:00:36]} gxf5 {[%emt 0:00:41]} 46. Qa1+ {[%emt 0:00:16]} Kg8 {[%emt 0:00:59]} 47. g5 {[%emt 0:00:11]} f4+ {[%emt 0:00:06]} 48. Kf2 {[%emt 0:00:10]} Qf5 {[%emt 0:00:15]} 49. Qa4 {[%emt 0:00:52]} Kg7 {[%emt 0:00:19]} 50. Qc6 {[%emt 0:00:55]} Qc2+ {[%emt 0:00:10]} 51. Kf3 {[%emt 0:00:22]} Bf5 {[%emt 0:00:57]} 52. Qe8 {[%emt 0:00:27]} Qd1+ {[%emt 0:01:14]} 53. Kxf4 {[%emt 0:00:50]} Qg4+ {[%emt 0:00:20]} 54. Ke3 {[%emt 0:00:03]} Qxg5+ {[%emt 0:00:25]} 55. Kf3 {[%emt 0:00:23]} Qg4+ {[%emt 0:00:26]} 56. Kf2 {[%emt 0:00:30]} Qd4+ {[%emt 0:00:21]} 57. Kg3 {[%emt 0:00:16]} Qd3+ {[%emt 0:00:32]} 58. Kf4 {[%emt 0:00:18]} Qf1+ {[%emt 0:00:33]} 59. Kg3 {[%emt 0:00:20]} Qxc4 {[%emt 0:00:21]} 60. Qd8 {[%emt 0:00:04]} Qg4+ {[%emt 0:00:28]} 61. Kf2 {[%emt 0:00:06]} Qf4+ {[%emt 0:00:05]} 62. Ke2 {[%emt 0:00:42]} Bg4+ {[%emt 0:00:13]} 63. Kd3 {[%emt 0:00:59]} Qd4+ {[%emt 0:00:15]} 64. Kc2 {[%emt 0:00:04]} Bf5+ {[%emt 0:00:10]} 65. Kc1 {[%emt 0:00:35]} Qc3+ {[%emt 0:00:05]} 0-1

[Event "1000GM Spring IM-C 2024"]
[Site "New York"]
[Date "2024.03.30"]
[Round "6.4"]
[White "Tanenbaum, Zachary"]
[Black "Yudasin, Leonid"]
[Result "0-1"]
[ECO "B90"]
[WhiteElo "2260"]
[BlackElo "2337"]
[Annotator "RC"]
[PlyCount "120"]
[EventDate "2024.03.26"]
[EventType "tourn"]
[EventCountry "USA"]
[SourceTitle "playchess.com"]
[Source "ChessBase"]
[SourceQuality "1"]
[TimeControl "5400+30"]

1. e4 {[%emt 0:20:06]} c5 {[%emt 0:00:08]} 2. Nf3 {[%emt 0:00:04]} d6 {[%emt 0:00:13]} 3. d4 {[%emt 0:00:04]} cxd4 {[%emt 0:00:07]} 4. Nxd4 {[%emt 0:00:05]} Nf6 {[%emt 0:00:07]} 5. Nc3 {[%emt 0:00:04]} a6 {[%emt 0:00:09]} 6. Be3 {[%emt 0:00:06]} Ng4 {[%emt 0:00:55]} 7. Bc1 {[%emt 0:00:05]} Nf6 {[%emt 0:00:16]} 8. Be3 {[%emt 0:00:03]} Ng4 {[%emt 0:00:14]} 9. Bg5 {[%emt 0:00:05]} h6 {[%emt 0:00:12]} 10. Bh4 {[%emt 0:00:04]} g5 {[%emt 0:00:10]} 11. Bg3 {[%emt 0:00:03]} Bg7 {[%emt 0:00:05]} 12. Be2 {[%emt 0:06:13]} h5 {[%emt 0:03:49]} 13. h4 {[%emt 0:02:07]} gxh4 {[%emt 0:02:52]} 14. Bxh4 {[%emt 0:00:26]} Nc6 {[%emt 0:00:41]} 15. Nb3 {[%emt 0:00:48]} Bxc3+ {[%emt 0:05:37]} 16. bxc3 {[%emt 0:00:03]} Be6 {[%emt 0:00:42]} 17. Nd4 {[%emt 0:07:13]} Qa5 {[%emt 0:03:51]} 18. Qd2 {[%emt 0:00:33]} Rc8 {[%emt 0:03:34]} 19. f3 {[%emt 0:29:10]} Nge5 {[%emt 0:01:13]} 20. Nxe6 {[%emt 0:08:02]} fxe6 {[%emt 0:00:17]} 21. Rb1 {[%emt 0:01:24]} Nd8 {[%emt 0:05:07]} 22. O-O {[%emt 0:02:26]} Ng6 {[%emt 0:04:28]} 23. Bf2 {[%emt 0:00:58]} e5 {[%emt 0:01:22]} 24. Rb3 {[%emt 0:06:28]} b5 {[%emt 0:09:05]} 25. Ra1 {[%emt 0:00:30]} Ne6 {[%emt 0:02:46]} 26. a4 {[%emt 0:04:50]} Nc5 {[%emt 0:03:44]} 27. Rb4 {[%emt 0:04:40]} Nf4 {[%emt 0:06:21]} 28. Bf1 {[%emt 0:00:19]} bxa4 {[%emt 0:01:20]} 29. g3 {[%emt 0:01:55]} Nfe6 {[%emt 0:02:28]} 30. Bh3 {[%emt 0:00:58]} Qc7 {[%emt 0:01:13]} 31. Qd5 {[%emt 0:00:20]} Kf7 {[%emt 0:00:56]} 32. Rc4 {[%emt 0:01:00]} Rh6 {[%emt 0:00:46]} 33. Bf5 {[%emt 0:02:17]} Rb8 {[%emt 0:03:48]} 34. Be3 {[%emt 0:01:31]} Rf6 {[%emt 0:00:35]} 35. Bg5 {[%emt 0:00:41]} Qa7 {[%emt 0:02:59]} 36. Kh1 {[%emt 0:00:48]} Qb7 {[%emt 0:01:54]} 37. Bxf6 {[%emt 0:00:42]} Kxf6 {[%emt 0:00:25]} 38. Qd2 {[%emt 0:01:27]} Rh8 {[%emt 0:00:23]} 39. Rb4 {[%emt 0:00:12]} Qa8 {[%emt 0:00:43]} 40. Rab1 {[%emt 0:00:16]} h4 {[%emt 0:00:23]} 41. g4 {[%emt 0:01:11]} Nf4 {[%emt 0:00:07]} 42. Rb6 {[%emt 0:00:30]} Qd8 {[%emt 0:00:30]} 43. Rc6 {[%emt 0:00:28]} Qa5 {[%emt 0:01:34]} 44. g5+ {[%emt 0:00:21]} Kxg5 {[%emt 0:01:00]} 45. Rg1+ {[%emt 0:00:45]} Kf6 {[%emt 0:00:07]} 46. Rxd6+ {[%emt 0:00:28]} exd6 {[%emt 0:00:02]} 47. Qxd6+ {[%emt 0:00:05]} Nce6 {[%emt 0:00:04]} 48. Rg6+ {[%emt 0:00:22]} Nxg6 {[%emt 0:00:04]} 49. Qxe6+ {[%emt 0:00:04]} Kg5 {[%emt 0:00:42]} 50. Bxg6 {[%emt 0:00:48]} Qxc3 {[%emt 0:04:05]} 51. Qf5+ {[%emt 0:01:01]} Kh6 {[%emt 0:00:03]} 52. Qf6 {[%emt 0:00:39]} Qe1+ {[%emt 0:00:22]} 53. Kh2 {[%emt 0:00:27]} Qg3+ {[%emt 0:00:18]} 54. Kh1 {[%emt 0:00:02]} Qh3+ {[%emt 0:00:21]} 55. Kg1 {[%emt 0:00:03]} Rg8 {[%emt 0:00:02]} 56. Kf2 {[%emt 0:00:16]} Qg3+ {[%emt 0:00:45]} 57. Ke2 {[%emt 0:00:07]} Qg5 {[%emt 0:00:44]} 58. Qd6 {[%emt 0:00:51]} Rxg6 {[%emt 0:01:08]} 59. Qf8+ {[%emt 0:00:08]} Kh7 {[%emt 0:00:04]} 60. Qf7+ {[%emt 0:00:09]} Rg7 {[%emt 0:00:03]} 0-1

[Event "1000GM Spring IM-C 2024"]
[Site "New York"]
[Date "2024.03.30"]
[Round "6.5"]
[White "Savanovic, Aleksandar"]
[Black "Shundi, Matias"]
[Result "1/2-1/2"]
[ECO "B92"]
[WhiteElo "2361"]
[BlackElo "2191"]
[Annotator "RC"]
[PlyCount "86"]
[EventDate "2024.03.26"]
[EventType "tourn"]
[EventCountry "USA"]
[SourceTitle "playchess.com"]
[Source "ChessBase"]
[SourceQuality "1"]
[TimeControl "5400+30"]

1. e4 {[%emt 0:01:22]} c5 {[%emt 0:06:48]} 2. Nf3 {[%emt 0:00:10]} d6 {[%emt 0:00:03]} 3. d4 {[%emt 0:00:07]} cxd4 {[%emt 0:00:04]} 4. Nxd4 {[%emt 0:00:08]} Nf6 {[%emt 0:00:04]} 5. Nc3 {[%emt 0:00:06]} a6 {[%emt 0:00:03]} 6. Be2 {[%emt 0:00:08]} e5 {[%emt 0:00:29]} 7. Nb3 {[%emt 0:00:06]} Be7 {[%emt 0:00:09]} 8. O-O {[%emt 0:00:09]} O-O {[%emt 0:00:07]} 9. Be3 {[%emt 0:00:05]} Be6 {[%emt 0:00:12]} 10. Qd2 {[%emt 0:00:19]} Nbd7 {[%emt 0:00:37]} 11. a4 {[%emt 0:00:10]} Nb6 {[%emt 0:00:35]} 12. a5 {[%emt 0:00:27]} Nc4 {[%emt 0:00:12]} 13. Bxc4 {[%emt 0:00:09]} Bxc4 {[%emt 0:00:03]} 14. Rfd1 {[%emt 0:00:12]} Rc8 {[%emt 0:11:49]} 15. Nc1 {[%emt 0:00:10]} d5 {[%emt 0:08:03]} 16. Bb6 {[%emt 0:00:10]} Qe8 {[%emt 0:02:08]} 17. exd5 {[%emt 0:00:21]} Bb4 {[%emt 0:01:51]} 18. d6 {[%emt 0:00:35]} Qd7 {[%emt 0:02:48]} 19. Nd3 {[%emt 0:07:55]} Bxd6 {[%emt 0:02:29]} 20. Nxe5 {[%emt 0:09:36]} Bxe5 {[%emt 0:00:24]} 21. Qxd7 {[%emt 0:00:12]} Nxd7 {[%emt 0:00:06]} 22. Rxd7 {[%emt 0:00:06]} Bxc3 {[%emt 0:00:09]} 23. bxc3 {[%emt 0:00:06]} Bb5 {[%emt 0:00:13]} 24. Rxb7 {[%emt 0:00:28]} Rxc3 {[%emt 0:00:11]} 25. Rc7 {[%emt 0:01:20]} Rxc7 {[%emt 0:02:06]} 26. Bxc7 {[%emt 0:00:11]} Rc8 {[%emt 0:00:21]} 27. Rd1 {[%emt 0:01:11]} f6 {[%emt 0:00:39]} 28. Rd8+ {[%emt 0:00:11]} Rxd8 {[%emt 0:00:05]} 29. Bxd8 {[%emt 0:00:04]} Kf7 {[%emt 0:00:15]} 30. f3 {[%emt 0:00:12]} Ke6 {[%emt 0:00:30]} 31. Kf2 {[%emt 0:00:23]} f5 {[%emt 0:24:28]} 32. Ke3 {[%emt 0:02:45]} Kd5 {[%emt 0:01:01]} 33. Kf4 {[%emt 0:01:30]} Ke6 {[%emt 0:05:10]} 34. Bb6 {[%emt 0:00:11]} g6 {[%emt 0:04:05]} 35. Bd4 {[%emt 0:04:56]} Bf1 {[%emt 0:29:43]} 36. Kg5 Bb5 {[%emt 0:00:30]} 37. Kh6 {[%emt 1:12:49]} Kf7 38. h4 {[%emt 0:00:30]} Kg8 39. g3 {[%emt 0:00:30]} Be2 {[%emt 0:01:30]} 40. f4 Bc4 {[%emt 0:00:30]} 41. h5 {[%emt 0:01:00]} Kf7 42. Kxh7 {[%emt 0:00:30]} gxh5 {[%emt 0:01:00]} 43. Kh6 Be2 {[%emt 0:00:30]} 1/2-1/2

[Event "1000GM Spring IM-C 2024"]
[Site "New York"]
[Date "2024.03.31"]
[Round "7.1"]
[White "Shundi, Matias"]
[Black "Pang, Qi"]
[Result "1/2-1/2"]
[ECO "C97"]
[WhiteElo "2191"]
[BlackElo "2195"]
[Annotator "RC"]
[PlyCount "170"]
[EventDate "2024.03.26"]
[EventType "tourn"]
[EventCountry "USA"]
[SourceTitle "playchess.com"]
[Source "ChessBase"]
[SourceQuality "1"]
[TimeControl "5400+30"]

1. e4 {[%emt 0:07:03]} e5 {[%emt 0:00:27]} 2. Nf3 {[%emt 0:00:05]} Nc6 {[%emt 0:00:06]} 3. Bb5 {[%emt 0:00:04]} a6 {[%emt 0:00:03]} 4. Ba4 {[%emt 0:00:07]} Nf6 {[%emt 0:00:06]} 5. O-O {[%emt 0:00:14]} Be7 {[%emt 0:00:07]} 6. Re1 {[%emt 0:00:06]} b5 {[%emt 0:00:06]} 7. Bb3 {[%emt 0:00:04]} d6 {[%emt 0:00:04]} 8. c3 {[%emt 0:00:13]} O-O {[%emt 0:00:06]} 9. h3 {[%emt 0:00:04]} Na5 {[%emt 0:00:05]} 10. Bc2 {[%emt 0:00:06]} c5 {[%emt 0:00:04]} 11. d4 {[%emt 0:00:05]} Qc7 {[%emt 0:00:08]} 12. d5 {[%emt 0:00:48]} Nc4 {[%emt 0:03:09]} 13. b3 {[%emt 0:00:52]} Nb6 {[%emt 0:00:04]} 14. a4 {[%emt 0:01:33]} bxa4 {[%emt 0:16:09]} 15. bxa4 {[%emt 0:00:28]} a5 {[%emt 0:00:08]} 16. Nbd2 {[%emt 0:06:58]} c4 {[%emt 0:01:07]} 17. Nf1 {[%emt 0:00:38]} Nfd7 {[%emt 0:02:34]} 18. g4 {[%emt 0:00:47]} Nc5 {[%emt 0:01:52]} 19. Ng3 {[%emt 0:01:10]} Re8 {[%emt 0:00:50]} 20. Kh2 {[%emt 0:04:18]} Ba6 {[%emt 0:02:04]} 21. Be3 {[%emt 0:03:16]} Bf8 {[%emt 0:03:46]} 22. Nh5 {[%emt 0:03:00]} Nbd7 {[%emt 0:01:24]} 23. Rg1 {[%emt 0:04:09]} Nd3 {[%emt 0:00:57]} 24. Nh4 {[%emt 0:07:16]} Nf4 {[%emt 0:28:58]} 25. Nxf4 {[%emt 0:04:09]} exf4 {[%emt 0:00:26]} 26. Bxf4 {[%emt 0:00:20]} g6 {[%emt 0:00:30]} 27. Qf3 {[%emt 0:13:06]} Ne5 {[%emt 0:06:21]} 28. Bxe5 {[%emt 0:17:16]} dxe5 {[%emt 0:00:32]} 29. Ng2 {[%emt 0:03:03]} Rab8 {[%emt 0:01:29]} 30. Ne3 {[%emt 0:05:37]} Qd6 {[%emt 0:02:38]} 31. g5 {[%emt 0:02:01]} Be7 {[%emt 0:00:45]} 32. h4 {[%emt 0:00:37]} f6 {[%emt 0:08:08]} 33. gxf6 {[%emt 0:02:00]} Qxf6 {[%emt 0:00:44]} 34. Qxf6 {[%emt 0:00:14]} Bxf6 {[%emt 0:00:02]} 35. h5 {[%emt 0:00:14]} Kf7 {[%emt 0:00:26]} 36. hxg6+ {[%emt 0:01:10]} hxg6 {[%emt 0:00:01]} 37. Rab1 {[%emt 0:00:52]} Rh8+ {[%emt 0:01:02]} 38. Kg2 {[%emt 0:00:18]} Bg5 {[%emt 0:00:40]} 39. Kf3 {[%emt 0:04:32]} Rh3+ {[%emt 0:06:08]} 40. Kg2 {[%emt 0:00:47]} Rbh8 {[%emt 0:01:22]} 41. Ng4 {[%emt 0:02:38]} Rxc3 {[%emt 0:00:14]} 42. Nxe5+ {[%emt 0:00:10]} Kg7 {[%emt 0:00:59]} 43. Rb6 {[%emt 0:02:00]} Bf6 {[%emt 0:01:30]} 44. Ng4 {[%emt 0:00:45]} Bc8 {[%emt 0:00:51]} 45. Bd1 {[%emt 0:02:11]} Bd4 {[%emt 0:01:16]} 46. Rc6 {[%emt 0:00:26]} Bxg4 {[%emt 0:00:26]} 47. Bxg4 {[%emt 0:00:12]} Rf8 {[%emt 0:00:12]} 48. Rf1 {[%emt 0:00:52]} Rc2 {[%emt 0:00:06]} 49. Bf3 {[%emt 0:01:03]} c3 {[%emt 0:01:22]} 50. d6 {[%emt 0:02:39]} Rd2 {[%emt 0:00:31]} 51. d7 {[%emt 0:00:39]} c2 {[%emt 0:04:02]} 52. e5 {[%emt 0:01:35]} Bxe5 {[%emt 0:01:09]} 53. Be4 {[%emt 0:00:21]} Rf6 {[%emt 0:02:17]} 54. Rxc2 {[%emt 0:00:35]} Rxd7 {[%emt 0:00:17]} 55. Rc5 {[%emt 0:00:42]} Re7 {[%emt 0:00:08]} 56. f3 {[%emt 0:00:36]} Bc7 {[%emt 0:01:11]} 57. Rfc1 {[%emt 0:00:18]} Bb6 {[%emt 0:00:16]} 58. Rc6 {[%emt 0:00:12]} Rfe6 {[%emt 0:01:23]} 59. Kg3 {[%emt 0:00:34]} Bd4 {[%emt 0:00:51]} 60. R1c4 {[%emt 0:00:26]} Be3 {[%emt 0:00:45]} 61. Kg4 {[%emt 0:00:19]} Rf6 {[%emt 0:00:40]} 62. Rc8 {[%emt 0:00:48]} Rd6 {[%emt 0:02:41]} 63. R4c6 {[%emt 0:00:57]} Rf6 {[%emt 0:00:36]} 64. Rc3 {[%emt 0:00:21]} Bd2 {[%emt 0:01:07]} 65. Rd3 {[%emt 0:00:14]} Bb4 {[%emt 0:01:04]} 66. Rdd8 {[%emt 0:00:10]} Rd6 {[%emt 0:00:41]} 67. Rg8+ {[%emt 0:00:23]} Kh7 {[%emt 0:00:07]} 68. Rh8+ {[%emt 0:00:54]} Kg7 {[%emt 0:00:01]} 69. Rcg8+ {[%emt 0:00:21]} Kf7 {[%emt 0:00:02]} 70. Ra8 {[%emt 0:00:42]} Kg7 {[%emt 0:01:12]} 71. Rhc8 {[%emt 0:00:25]} Kh7 {[%emt 0:01:07]} 72. Rg8 {[%emt 0:00:20]} Rc7 {[%emt 0:00:11]} 73. Rh8+ {[%emt 0:00:27]} Kg7 {[%emt 0:00:02]} 74. Rag8+ {[%emt 0:00:15]} Kf7 {[%emt 0:00:04]} 75. Rb8 {[%emt 0:00:18]} Kg7 {[%emt 0:00:19]} 76. Rh1 {[%emt 0:00:36]} Rd2 {[%emt 0:01:15]} 77. Rbh8 {[%emt 0:01:26]} Kf6 {[%emt 0:01:17]} 78. R1h2 {[%emt 0:01:18]} Rd1 {[%emt 0:00:32]} 79. Rh1 {[%emt 0:00:28]} Rd2 {[%emt 0:00:14]} 80. R8h2 {[%emt 0:00:10]} Rxh2 {[%emt 0:00:54]} 81. Rxh2 {[%emt 0:00:02]} Rc5 {[%emt 0:00:02]} 82. Rc2 {[%emt 0:01:10]} Rg5+ {[%emt 0:00:26]} 83. Kh3 {[%emt 0:00:08]} Rc5 {[%emt 0:00:53]} 84. Rxc5 {[%emt 0:00:24]} Bxc5 {[%emt 0:00:04]} 85. Kg2 {[%emt 0:01:50]} Ke5 {[%emt 0:02:05]} 1/2-1/2

[Event "1000GM Spring IM-C 2024"]
[Site "New York"]
[Date "2024.03.31"]
[Round "7.2"]
[White "Yudasin, Leonid"]
[Black "Savanovic, Aleksandar"]
[Result "1/2-1/2"]
[ECO "C99"]
[WhiteElo "2337"]
[BlackElo "2361"]
[Annotator "RC"]
[PlyCount "34"]
[EventDate "2024.03.26"]
[EventType "tourn"]
[EventCountry "USA"]
[SourceTitle "playchess.com"]
[Source "ChessBase"]
[SourceQuality "1"]
[TimeControl "5400+30"]

1. e4 {[%emt 0:00:07]} e5 {[%emt 0:00:06]} 2. Nf3 {[%emt 0:00:35]} Nc6 {[%emt 0:00:13]} 3. Bb5 {[%emt 0:00:24]} a6 {[%emt 0:00:06]} 4. Ba4 {[%emt 0:00:07]} Nf6 {[%emt 0:00:05]} 5. O-O {[%emt 0:00:45]} Be7 {[%emt 0:01:52]} 6. Re1 {[%emt 0:00:55]} b5 {[%emt 0:01:51]} 7. Bb3 {[%emt 0:01:12]} d6 {[%emt 0:00:03]} 8. c3 {[%emt 0:00:21]} O-O {[%emt 0:00:08]} 9. h3 {[%emt 0:01:24]} Na5 {[%emt 0:01:47]} 10. Bc2 {[%emt 0:00:49]} c5 {[%emt 0:00:06]} 11. d4 {[%emt 0:00:30]} Qc7 {[%emt 0:00:19]} 12. Nbd2 {[%emt 0:00:41]} cxd4 {[%emt 0:02:06]} 13. cxd4 {[%emt 0:00:10]} Bd7 {[%emt 0:00:06]} 14. Nf1 {[%emt 0:01:02]} Rac8 {[%emt 0:00:29]} 15. Ne3 {[%emt 0:03:04]} Nc6 {[%emt 0:02:38]} 16. d5 {[%emt 0:00:52]} Nb4 {[%emt 0:00:04]} 17. Bb1 {[%emt 0:00:11]} a5 {[%emt 0:00:02]} 1/2-1/2

[Event "1000GM Spring IM-C 2024"]
[Site "New York"]
[Date "2024.03.31"]
[Round "7.3"]
[White "Andrews, Todd"]
[Black "Tanenbaum, Zachary"]
[Result "0-1"]
[ECO "A09"]
[WhiteElo "2160"]
[BlackElo "2260"]
[Annotator "RC"]
[PlyCount "142"]
[EventDate "2024.03.26"]
[EventType "tourn"]
[EventCountry "USA"]
[SourceTitle "playchess.com"]
[Source "ChessBase"]
[SourceQuality "1"]
[TimeControl "5400+30"]

1. Nf3 {[%emt 0:00:03]} d5 {[%emt 0:03:38]} 2. c4 {[%emt 0:00:24]} d4 {[%emt 0:00:03]} 3. b4 {[%emt 0:00:25]} c5 {[%emt 0:00:02]} 4. e3 {[%emt 0:00:28]} dxe3 {[%emt 0:02:32]} 5. fxe3 {[%emt 0:00:23]} cxb4 {[%emt 0:00:20]} 6. d4 {[%emt 0:00:09]} Nf6 {[%emt 0:05:08]} 7. Bd3 {[%emt 0:02:18]} Bg4 {[%emt 0:06:28]} 8. Bb2 {[%emt 0:18:54]} e5 {[%emt 0:24:47]} 9. dxe5 {[%emt 0:00:30]} Nfd7 10. O-O Nc6 {[%emt 0:01:29]} 11. Be4 {[%emt 0:26:09]} Bc5 {[%emt 0:03:02]} 12. Qe1 {[%emt 0:18:26]} Qb6 {[%emt 0:16:12]} 13. Qh4 {[%emt 0:04:31]} Bxf3 {[%emt 0:08:37]} 14. e6 {[%emt 0:05:37]} Bxe3+ 15. Kh1 {[%emt 0:00:30]} Nde5 16. exf7+ {[%emt 0:00:30]} Kf8 17. Bxf3 {[%emt 0:00:30]} Bd4 18. Bxd4 {[%emt 0:00:30]} Qxd4 19. Qxd4 {[%emt 0:00:30]} Nxd4 20. Nd2 {[%emt 0:00:30]} Rd8 21. Rae1 {[%emt 0:00:30]} Nd3 22. Rb1 {[%emt 0:00:30]} b6 23. Bd5 {[%emt 0:00:30]} g6 24. Ne4 {[%emt 0:00:30]} Nc5 25. Nf6 {[%emt 0:00:30]} Kg7 26. Rbe1 {[%emt 0:00:30]} Rhf8 27. Re7 {[%emt 0:00:30]} Nf5 28. Ne8+ {[%emt 0:00:30]} Kh6 29. Rxa7 {[%emt 0:00:30]} Ne3 30. Rf3 {[%emt 0:00:30]} Nxd5 31. cxd5 {[%emt 0:00:30]} Rxd5 32. g4 {[%emt 0:00:30]} Kg5 33. Nf6 {[%emt 0:00:30]} Rd1+ 34. Kg2 {[%emt 0:00:30]} Kh6 35. Rh3+ {[%emt 0:00:30]} Kg7 36. Ne8+ {[%emt 0:00:30]} Kh8 37. Nf6 {[%emt 0:00:30]} Rd2+ 38. Kf1 {[%emt 0:00:30]} Kg7 39. Rf3 {[%emt 0:00:30]} Ne6 40. h4 {[%emt 0:00:30]} Nd8 41. Ne4 {[%emt 0:00:30]} Rd4 42. Nf2 {[%emt 0:00:30]} Rxf7 43. Rfxf7+ {[%emt 0:00:30]} Nxf7 44. Rb7 {[%emt 0:00:30]} Kf6 45. Rxb6+ {[%emt 0:00:30]} Ke5 46. Rb7 {[%emt 0:00:30]} Ke6 47. Ke2 {[%emt 0:00:30]} Ne5 48. Rxh7 {[%emt 0:00:30]} Nxg4 49. Nd3 {[%emt 0:00:30]} Nf6 50. Rb7 {[%emt 0:00:30]} Nd5 51. Rg7 {[%emt 0:00:30]} Kf6 52. Rh7 {[%emt 0:00:30]} Nc3+ 53. Ke3 {[%emt 0:00:30]} Re4+ 54. Kf3 {[%emt 0:00:30]} Rc4 55. Nf4 {[%emt 0:00:30]} Nxa2 56. Rb7 {[%emt 0:00:30]} Nc3 57. Rb6+ {[%emt 0:00:30]} Kf5 58. Nxg6 {[%emt 0:00:30]} Nd5 59. Ra6 {[%emt 0:00:30]} Rc3+ 60. Ke2 {[%emt 0:00:30]} Ke4 61. Re6+ {[%emt 0:00:30]} Kd4 62. h5 {[%emt 0:00:30]} b3 63. Re8 {[%emt 0:00:30]} b2 64. Rb8 {[%emt 0:00:30]} Rh3 65. Kf2 {[%emt 0:00:30]} Rh1 66. h6 {[%emt 0:00:30]} Nf6 67. Nf8 {[%emt 0:00:30]} b1=Q 68. Rxb1 {[%emt 0:00:30]} Rxb1 69. Kg3 {[%emt 0:00:30]} Rh1 70. Ne6+ {[%emt 0:00:30]} Ke5 71. Ng5 {[%emt 0:00:30]} Rg1+ 0-1

[Event "1000GM Spring IM-C 2024"]
[Site "New York"]
[Date "2024.03.31"]
[Round "7.4"]
[White "Lekic, Dusan"]
[Black "Yang, Qindong"]
[Result "1/2-1/2"]
[ECO "E08"]
[WhiteElo "2320"]
[BlackElo "2234"]
[Annotator "RC"]
[PlyCount "41"]
[EventDate "2024.03.26"]
[EventType "tourn"]
[EventCountry "USA"]
[SourceTitle "playchess.com"]
[Source "ChessBase"]
[SourceQuality "1"]
[TimeControl "5400+30"]

1. d4 {[%emt 0:00:04]} Nf6 {[%emt 0:12:25]} 2. c4 {[%emt 0:00:08]} e6 {[%emt 0:00:08]} 3. Nf3 {[%emt 0:00:08]} d5 {[%emt 0:00:17]} 4. g3 {[%emt 0:00:27]} Bb4+ {[%emt 0:00:36]} 5. Bd2 {[%emt 0:00:09]} Be7 {[%emt 0:00:16]} 6. Bg2 {[%emt 0:00:12]} c6 {[%emt 0:00:15]} 7. Qc2 {[%emt 0:00:41]} O-O {[%emt 0:00:12]} 8. O-O {[%emt 0:00:14]} Nbd7 {[%emt 0:11:47]} 9. Bf4 {[%emt 0:00:16]} a5 {[%emt 0:01:05]} 10. h4 {[%emt 0:02:45]} b6 {[%emt 1:08:29]} 11. Nbd2 Bb7 12. e4 Nxe4 {[%emt 0:00:00]} 13. Nxe4 {[%emt 0:17:16]} dxe4 {[%emt 0:00:00]} 14. Ng5 {[%emt 0:04:11]} c5 {[%emt 0:00:00]} 15. dxc5 {[%emt 0:03:11]} Nxc5 {[%emt 0:00:00]} 16. Nxe4 {[%emt 0:01:26]} Qd3 {[%emt 0:00:00]} 17. Qxd3 {[%emt 0:07:09]} Nxd3 {[%emt 0:00:00]} 18. Bc1 {[%emt 0:00:16]} Rac8 {[%emt 0:00:00]} 19. b3 {[%emt 0:00:32]} Nxc1 {[%emt 0:00:00]} 20. Raxc1 {[%emt 0:00:10]} Bxe4 {[%emt 0:00:00]} 21. Bxe4 {[%emt 0:00:16]} 1/2-1/2